fUSD/lending_fUSD_20240214
["ID","MTS","AMOUNT","RATE_DAILY","PERIOD"]
[313995354,1707918710410,-1276.66,0.00038082,2]
[313995355,1707918710419,-574.28,0.00038082,2]
[313995356,1707918710429,-4016.09,0.00038082,2]
[313995357,1707918710439,-1923.51,0.00038082,2]
[313995358,1707918710450,-773.79,0.00038082,2]
[313995359,1707918710459,-1158.37,0.00038082,2]
[313995360,1707918710470,-500.0,0.00038082,2]
[313995361,1707918710479,-1689.83,0.00038082,2]
[313995362,1707918710489,-575.3,0.00038082,2]
[313995363,1707918710498,-4706.8,0.00038082,2]
[313995364,1707918710507,-747.49,0.00038082,2]
[313995365,1707918710517,-1197.0,0.00038082,2]
[313995366,1707918710526,-958.67,0.00038082,2]
[313995367,1707918710536,-881.68,0.00038082,2]
[313995368,1707918710546,-610.39098555,0.00038082,2]
[313995369,1707918710556,-516.51780824,0.00038082,2]
[313995370,1707918710565,-860.88,0.00038082,2]
[313995371,1707918710575,-1951.36,0.00038082,2]
[313995372,1707918710585,-1164.93,0.00038082,2]
[313995373,1707918710595,-1362.66,0.00038082,2]
[313995374,1707918710605,-500.0,0.00038082,2]
[313995375,1707918710615,-5008.04,0.00038082,2]
[313995376,1707918710626,-548.64452493,0.00038082,2]
[313995377,1707918710639,-500.0,0.00038082,2]
[313995378,1707918710649,-4529.93,0.00038082,2]
[313995379,1707918710660,-500.0,0.00038082,2]
[313995380,1707918710670,-3699.47,0.00038082,2]
[313995381,1707918710679,-500.0,0.00038082,2]
[313995382,1707918710689,-12952.9,0.00038082,2]
[313995383,1707918710699,-828.54,0.00038082,2]
[313995384,1707918710709,-500.0,0.00038082,2]
[313995385,1707918710720,-1251.9,0.00038082,2]
[313995386,1707918710730,-3126.29,0.00038082,2]
[313995387,1707918710741,-1152.44,0.00038082,2]
[313995388,1707918710751,-1437.69,0.00038082,2]
[313995389,1707918710760,-1237.6,0.00038082,2]
[313995390,1707918710770,-500.0,0.00038082,2]
[313995391,1707918710780,-822.05,0.00038082,2]
[313995392,1707918710790,-1678.52,0.00038082,2]
[313995393,1707918710800,-1826.37,0.00038082,2]
[313995394,1707918710811,-797.67,0.00038082,2]
[313995395,1707918710821,-582.74,0.00038082,2]
[313995396,1707918710831,-2133.72,0.00038082,2]
[313995397,1707918710841,-1064.91,0.00038082,2]
[313995398,1707918710852,-1749.77,0.00038082,2]
[313995399,1707918710861,-1043.31,0.00038082,2]
[313995400,1707918710871,-500.0,0.00038082,2]
[313995401,1707918710882,-1310.86,0.00038082,2]
[313995402,1707918710891,-967.45,0.00038082,2]
[313995403,1707918710901,-500.0,0.00038082,2]
[313995404,1707918710911,-500.0,0.00038082,2]
[313995405,1707918710921,-2819.82,0.00038082,2]
[313995406,1707918710931,-2597.17,0.00038082,2]
[313995407,1707918710941,-720.93,0.00038082,2]
[313995408,1707918710951,-500.0,0.00038082,2]
[313995409,1707918710960,-500.0,0.00038082,2]
[313995410,1707918710970,-809.82,0.00038082,2]
[313995411,1707918710980,-1115.91,0.00038082,2]
[313995412,1707918710989,-1189.12,0.00038082,2]
[313995413,1707918710999,-605.51,0.00038082,2]
[313995414,1707918711009,-1440.13,0.00038082,2]
[313995415,1707918711018,-513.76,0.00038082,2]
[313995416,1707918711029,-631.29,0.00038082,2]
[313995417,1707918711039,-1306.22,0.00038082,2]
[313995418,1707918711049,-872.68,0.00038082,2]
[313995419,1707918711059,-2146.65,0.00038082,2]
[313995420,1707918711069,-500.0,0.00038082,2]
[313995421,1707918711079,-549.7,0.00038082,2]
[313995422,1707918711089,-5114.22,0.00038082,2]
[313995423,1707918711098,-1222.64,0.00038082,2]
[313995424,1707918711109,-4990.81,0.00038082,2]
[313995425,1707918711118,-1285.38,0.00038082,2]
[313995426,1707918711129,-1231.04,0.00038082,2]
[313995427,1707918711139,-509.78,0.00038082,2]
[313995428,1707918711149,-742.8,0.00038082,2]
[313995429,1707918711159,-3732.73,0.00038082,2]
[313995430,1707918711169,-500.0,0.00038082,2]
[313995431,1707918711180,-514.43,0.00038082,2]
[313995432,1707918711191,-2453.8,0.00038082,2]
[313995433,1707918711201,-500.0,0.00038082,2]
[313995434,1707918711211,-500.0,0.00038082,2]
[313995435,1707918711221,-500.0,0.00038082,2]
[313995436,1707918711231,-500.0,0.00038082,2]
[313995437,1707918711241,-5821.53,0.00038082,2]
[313995438,1707918711251,-2011.37,0.00038082,2]
[313995439,1707918711262,-500.0,0.00038082,2]
[313995440,1707918711273,-1144.7,0.00038082,2]
[313995441,1707918711284,-500.0,0.00038082,2]
[313995442,1707918711295,-500.0,0.00038082,2]
[313995443,1707918711304,-519.38,0.00038082,2]
[313995444,1707918711314,-500.0,0.00038082,2]
[313995445,1707918711324,-500.0,0.00038082,2]
[313995446,1707918711335,-3702.41,0.00038082,2]
[313995447,1707918711345,-880.95,0.00038082,2]
[313995448,1707918711355,-534.9,0.00038082,2]
[313995449,1707918711365,-1238.83,0.00038082,2]
[313995450,1707918711375,-8636.35,0.00038082,2]
[313995451,1707918711386,-500.0,0.00038082,2]
[313995452,1707918711397,-176.52114548,0.00038082,2]
[313995453,1707918712409,-437.55999999,0.00038082,2]
[313995454,1707918712422,-747.24885453,0.00038082,2]
[313995455,1707918712432,-371.13514554,0.00038082,2]
[313995456,1707918712443,-7240.51485446,0.00038082,2]
[313995457,1707918712453,-702.73,0.00038082,2]
[313995458,1707918712462,-1501.21,0.00038082,2]
[313995459,1707918712471,-697.0,0.00038082,2]
[313995460,1707918712481,-616.5,0.00038082,2]
[313995461,1707918712491,-500.0,0.00038082,2]
[313995462,1707918712501,-872.65,0.00038082,2]
[313995463,1707918712511,-1537.45,0.00038082,2]
[313995464,1707918712520,-500.0,0.00038082,2]
[313995465,1707918712533,-960.14,0.00038082,2]
[313995466,1707918712542,-500.0,0.00038082,2]
[313995467,1707918712551,-500.0,0.00038082,2]
[313995468,1707918712561,-500.0,0.00038082,2]
[313995469,1707918712571,-1141.7,0.00038082,2]
[313995470,1707918712580,-604.39,0.00038082,2]
[313995471,1707918712590,-500.0,0.00038082,2]
[313995472,1707918712600,-5355.99,0.00038082,2]
[313995473,1707918712610,-16645.44,0.00038082,2]
[313995474,1707918712619,-1144.07,0.00038082,2]
[313995475,1707918712629,-674.99518715,0.00038082,2]
[313995476,1707918712646,-432.57481285,0.00038082,2]
[313995477,1707918712656,-500.0,0.00038082,2]
[313995478,1707918712665,-1882.22,0.00038082,2]
[313995479,1707918712675,-500.0,0.00038082,2]
[313995480,1707918712685,-464.17095933,0.00038082,2]
[313995481,1707918712695,-6432.6821252,0.00038082,2]
[313995482,1707918712716,-893.8678748,0.00038082,2]
[313995483,1707918712725,-500.0,0.00038082,2]
[313995484,1707918712735,-1302.63,0.00038082,2]
[313995485,1707918712745,-1550.23,0.00038082,2]
[313995486,1707918712755,-588.3,0.00038082,2]
[313995487,1707918712766,-500.0,0.00038082,2]
[313995488,1707918712776,-974.43,0.00038082,2]
[313995489,1707918712791,-500.0,0.00038082,2]
[313995490,1707918712801,-941.93,0.00038082,2]
[313995491,1707918712810,-3756.61,0.00038082,2]
[313995492,1707918712820,-500.0,0.00038082,2]
[313995493,1707918712829,-500.0,0.00038082,2]
[313995494,1707918712839,-1129.76,0.00038082,2]
[313995495,1707918712848,-500.0,0.00038082,2]
[313995496,1707918712858,-1956.7,0.00038082,2]
[313995497,1707918712868,-419.37614311,0.00038082,2]
[313995498,1707918712888,-1003.78385689,0.00038082,2]
[313995499,1707918712897,-2112.48642251,0.00038082,2]
[313995500,1707918712910,-2128.16357749,0.00038082,2]
[313995501,1707918712919,-1226.81,0.00038082,2]
[313995502,1707918712929,-748.35695561,0.00038082,2]
[313995503,1707918712940,-12.75304439,0.00038082,2]
[313995504,1707918712950,-856.41,0.00038082,2]
[313995505,1707918712959,-2318.1880824,0.00038082,2]
[313995506,1707918712970,-696.9719176,0.00038082,2]
[313995507,1707918712979,-603.11411661,0.00038082,2]
[313995508,1707918712991,-590.29588339,0.00038082,2]
[313995509,1707918713001,-539.2255396,0.00038082,2]
[313995510,1707918713013,-516.68256542,0.00038082,2]
[313995511,1707918713024,-573.19189498,0.00038082,2]
[313995512,1707918713037,-5323.65,0.00038082,2]
[313995513,1707918713047,-500.0,0.00038082,2]
[313995514,1707918713056,-1989.93,0.00038082,2]
[313995515,1707918713066,-774.14,0.00038082,2]
[313995516,1707918713076,-1500.0,0.00038097,2]
[313995517,1707918713085,-150.0,0.000381,27]
[313995518,1707918713094,-150.0,0.00038115,2]
[313995519,1707918713104,-1500.0,0.00038129,2]
[313995520,1707918713113,-223.4311878,0.00038131,7]
[313995521,1707918713122,-500.0,0.00038131,7]
[313995522,1707918713133,-774.52,0.00038131,2]
[313995523,1707918713143,-500.0,0.00038131,7]
[313995524,1707918713153,-500.0,0.00038131,7]
[313995525,1707918713163,-500.0,0.00038131,7]
[313995526,1707918713172,-500.0,0.00038131,7]
[313995527,1707918713182,-500.0,0.00038131,7]
[313995528,1707918713192,-500.0,0.00038131,7]
[313995529,1707918713201,-500.0,0.00038131,7]
[313995530,1707918713211,-500.0,0.00038131,7]
[313995531,1707918713220,-500.0,0.00038131,7]
[313995532,1707918713229,-500.0,0.00038131,7]
[313995533,1707918713238,-500.0,0.00038131,7]
[313995534,1707918713247,-500.0,0.00038131,7]
[313995535,1707918713257,-839.71,0.00038131,7]
[313995536,1707918713266,-500.0,0.00038131,7]
[313995537,1707918713275,-500.0,0.00038131,7]
[313995538,1707918713286,-500.0,0.00038131,7]
[313995539,1707918713294,-290.90925275,0.00038131,7]
[313995540,1707918713304,-500.0,0.00038131,7]
[313995541,1707918713313,-500.0,0.00038131,7]
[313995542,1707918713322,-500.0,0.00038131,7]
[313995543,1707918713331,-493.60166384,0.00038131,7]
[313995544,1707918713341,-500.0,0.00038131,7]
[313995545,1707918713350,-500.0,0.00038131,7]
[313995546,1707918713360,-500.0,0.00038131,7]
[313995547,1707918713370,-500.0,0.00038131,7]
[313995548,1707918713380,-500.0,0.00038131,7]
[313995549,1707918713390,-583.90868535,0.00038131,7]
[313995550,1707918713399,-509.23,0.00038131,7]
[313995551,1707918713409,-596.65,0.00038131,7]
[313995552,1707918713418,-500.0,0.00038131,7]
[313995553,1707918713427,-500.0,0.00038131,7]
[313995554,1707918713437,-500.0,0.00038131,7]
[313995555,1707918713446,-500.0,0.00038131,7]
[313995556,1707918713455,-500.0,0.00038131,7]
[313995557,1707918713464,-500.0,0.00038131,7]
[313995558,1707918713474,-646.68,0.00038131,7]
[313995559,1707918713483,-711.13,0.00038131,2]
[313995560,1707918713491,-500.0,0.00038131,7]
[313995561,1707918713501,-308.32700168,0.00038131,7]
[313995562,1707918713510,-500.0,0.00038131,7]
[313995563,1707918713519,-500.0,0.00038131,7]
[313995564,1707918713528,-500.0,0.00038131,7]
[313995565,1707918713538,-500.0,0.00038131,7]
[313995566,1707918713548,-579.59,0.00038131,7]
[313995567,1707918713557,-500.0,0.00038131,7]
[313995568,1707918713567,-771.59,0.00038131,7]
[313995569,1707918713576,-500.0,0.00038131,7]
[313995570,1707918713586,-648.77076857,0.00038131,7]
[313995571,1707918713596,-500.0,0.00038131,7]
[313995572,1707918713606,-500.0,0.00038131,7]
[313995573,1707918713615,-500.0,0.00038131,7]
[313995574,1707918713625,-500.0,0.00038131,7]
[313995575,1707918713635,-845.86,0.00038131,7]
[313995576,1707918713648,-773.25,0.00038131,7]
[313995577,1707918713657,-500.0,0.00038131,7]
[313995578,1707918713667,-500.0,0.00038131,7]
[313995579,1707918713676,-543.39,0.00038131,7]
[313995580,1707918713686,-500.0,0.00038131,7]
[313995581,1707918713696,-500.0,0.00038131,7]
[313995582,1707918713705,-1043.82578405,0.00038141,30]
[313995583,1707918713716,-150.0,0.00038159,2]
[313995584,1707918713726,-5840.86107397,0.000382,7]
[313995585,1707918713742,-296.71386855,0.000382,7]
[313995586,1707918713771,-405.5664405,0.00036712,2]
[313995587,1707918713783,-94.4335595,0.00036712,2]
[313995588,1707918713792,-466.7139801,0.000382,7]
[313995589,1707918713804,-593.30907259,0.000382,7]
[313995590,1707918713828,-1679.045025,0.000382,7]
[313995591,1707918713839,-57041.83089772,0.000382,7]
[313995592,1707918713848,-186.91041433,0.00038219,2]
[313995593,1707918713858,-150.0,0.00038233,2]
[313995594,1707918713867,-389.81178094,0.00038249,2]
[313995595,1707918713877,-150.0,0.00038254,2]
[313995596,1707918713886,-151.8676074,0.00038267,2]
[313995597,1707918713895,-150.0,0.00038279,2]
[313995598,1707918713905,-1000.0,0.00038291,10]
[313995599,1707918713914,-1077.60692109,0.000383,4]
[313995600,1707918713923,-150.0,0.00038321,2]
[313995601,1707918713933,-28248.5923099,0.0003833,2]
[313995602,1707918713942,-5373.1395605,0.0003833,2]
[313995603,1707918713951,-841.565984,0.0003833,2]
[313995604,1707918713961,-379.8367225,0.0003833,2]
[313995605,1707918713970,-1241.9110358,0.0003833,2]
[313995606,1707918713979,-168.3131968,0.0003833,2]
[313995607,1707918713989,-1400.1936862,0.0003833,2]
[313995608,1707918713999,-30000.00806012,0.0003835,5]
[313995609,1707918714009,-156.30052842,0.00038354,4]
[313995610,1707918714019,-432.40059987,0.00038354,2]
[313995611,1707918714028,-559.56904296,0.00038355,4]
[313995612,1707918714039,-200.0,0.00038355,21]
[313995613,1707918714049,-150.0,0.00038355,2]
[313995614,1707918714058,-500.0,0.00038356,7]
[313995615,1707918714068,-500.0,0.00038356,7]
[313995616,1707918714077,-192.8102511,0.00038356,7]
[313995617,1707918714086,-199.61297718,0.00038356,7]
[313995618,1707918714095,-500.0,0.00038356,7]
[313995619,1707918714105,-500.0,0.00038356,7]
[313995620,1707918714114,-500.0,0.00038356,7]
[313995621,1707918714123,-150.0,0.00038356,7]
[313995622,1707918714133,-500.0,0.00038356,7]
[313995623,1707918714142,-500.0,0.00038356,7]
[313995624,1707918714152,-500.0,0.00038356,7]
[313995625,1707918714161,-500.0,0.00038356,7]
[313995626,1707918714171,-470.62916861,0.00038356,7]
[313995627,1707918714181,-500.0,0.00038356,7]
[313995628,1707918714191,-500.0,0.00038356,7]
[313995629,1707918714200,-500.0,0.00038356,7]
[313995630,1707918714210,-500.0,0.00038356,7]
[313995631,1707918714219,-666.65,0.00038356,7]
[313995632,1707918714230,-500.0,0.00038356,7]
[313995633,1707918714240,-500.0,0.00038356,7]
[313995634,1707918714251,-500.0,0.00038356,7]
[313995635,1707918714262,-500.0,0.00038356,7]
[313995636,1707918714273,-500.0,0.00038356,7]
[313995637,1707918714284,-500.0,0.00038356,7]
[313995638,1707918714293,-500.0,0.00038356,7]
[313995639,1707918714302,-500.0,0.00038356,7]
[313995640,1707918714312,-500.0,0.00038356,7]
[313995641,1707918714322,-500.0,0.00038356,7]
[313995642,1707918714332,-610.71,0.00038356,7]
[313995643,1707918714342,-500.0,0.00038356,7]
[313995644,1707918714351,-500.0,0.00038356,7]
[313995645,1707918714360,-500.0,0.00038356,7]
[313995646,1707918714369,-500.0,0.00038356,7]
[313995647,1707918714379,-500.0,0.00038356,7]
[313995648,1707918714388,-477.7638182,0.00038356,7]
[313995649,1707918714398,-500.0,0.00038356,7]
[313995650,1707918714407,-554.07,0.00038356,7]
[313995651,1707918714416,-542.31,0.00038356,7]
[313995652,1707918714426,-500.0,0.00038356,7]
[313995653,1707918714435,-680.98,0.00038356,7]
[313995654,1707918714444,-500.0,0.00038356,7]
[313995655,1707918714454,-500.0,0.00038356,7]
[313995656,1707918714463,-500.0,0.00038356,7]
[313995657,1707918714473,-564.97,0.00038356,7]
[313995658,1707918714482,-500.0,0.00038356,7]
[313995659,1707918714492,-500.0,0.00038356,7]
[313995660,1707918714501,-1037.12,0.00038356,7]
[313995661,1707918714510,-639.43,0.00038356,7]
[313995662,1707918714519,-479.04153307,0.00038356,7]
[313995663,1707918714529,-500.0,0.00038356,7]
[313995664,1707918714539,-662.66,0.00038356,7]
[313995665,1707918714549,-593.09,0.00038356,7]
[313995666,1707918714558,-586.77,0.00038356,7]
[313995667,1707918714567,-500.0,0.00038356,7]
[313995668,1707918714576,-1250.0,0.00038356,2]
[313995669,1707918714586,-752.61,0.00038356,7]
[313995670,1707918714596,-781.56,0.00038356,7]
[313995671,1707918714605,-500.0,0.00038356,7]
[313995672,1707918714614,-500.0,0.00038356,7]
[313995673,1707918714624,-686.38,0.00038356,7]
[313995674,1707918714637,-538.8,0.00038356,7]
[313995675,1707918714646,-500.0,0.00038356,7]
[313995676,1707918714655,-507.26386973,0.00038356,7]
[313995677,1707918714664,-500.0,0.00038356,7]
[313995678,1707918714674,-500.0,0.00038356,7]
[313995679,1707918714683,-500.0,0.00038356,7]
[313995680,1707918714692,-500.0,0.00038356,7]
[313995681,1707918714701,-500.0,0.00038356,7]
[313995682,1707918714710,-538.79,0.00038356,7]
[313995683,1707918714721,-1000.0,0.00038356,120]
[313995684,1707918714730,-1088.05,0.00038356,7]
[313995685,1707918714739,-1000.0,0.00038356,120]
[313995686,1707918714749,-1000.0,0.00038356,120]
[313995687,1707918714758,-449.7494483,0.00038356,120]
[313995688,1707918714767,-500.0,0.00038356,7]
[313995689,1707918714777,-740.2,0.00038356,7]
[313995690,1707918714787,-1131.8,0.00038356,7]
[313995691,1707918714796,-500.0,0.00038356,7]
[313995692,1707918714805,-688.02,0.00038356,7]
[313995693,1707918714816,-500.0,0.00038356,7]
[313995694,1707918714825,-500.0,0.00038356,7]
[313995695,1707918714835,-1651.95,0.00038356,7]
[313995696,1707918714844,-525.42,0.00038356,7]
[313995697,1707918714853,-500.0,0.00038356,7]
[313995698,1707918714862,-769.2,0.00038356,7]
[313995699,1707918714871,-500.0,0.00038356,7]
[313995700,1707918714880,-500.0,0.00038356,7]
[313995701,1707918714890,-500.0,0.00038356,7]
[313995702,1707918714900,-368.62020469,0.00038356,7]
[313995703,1707918714910,-994.52,0.00038356,7]
[313995704,1707918714920,-1207.68,0.00038356,7]
[313995705,1707918714929,-644.98,0.00038356,7]
[313995706,1707918714938,-500.0,0.00038356,7]
[313995707,1707918714948,-1105.47,0.00038356,7]
[313995708,1707918714958,-899.54,0.00038356,7]
[313995709,1707918714967,-500.0,0.00038356,7]
[313995710,1707918714977,-500.0,0.00038356,7]
[313995711,1707918714986,-686.26,0.00038356,7]
[313995712,1707918714995,-859.98,0.00038356,7]
[313995713,1707918715005,-964.36,0.00038356,7]
[313995714,1707918715015,-500.0,0.00038356,7]
[313995715,1707918715025,-509.76,0.00038356,7]
[313995716,1707918715035,-1087.88,0.00038356,7]
[313995717,1707918715045,-885.89,0.00038356,7]
[313995718,1707918715055,-500.0,0.00038356,7]
[313995719,1707918715064,-1467.73,0.00038356,7]
[313995720,1707918715074,-799.09,0.00038356,7]
[313995721,1707918715084,-500.0,0.00038356,7]
[313995722,1707918715094,-542.62,0.00038356,7]
[313995723,1707918715104,-500.0,0.00038356,7]
[313995724,1707918715113,-873.25,0.00038356,7]
[313995725,1707918715123,-1208.48,0.00038356,7]
[313995726,1707918715133,-595.65,0.00038356,7]
[313995727,1707918715143,-1125.43,0.00038356,7]
[313995728,1707918715152,-640.41,0.00038356,7]
[313995729,1707918715162,-500.0,0.00038356,7]
[313995730,1707918715403,-1575.86,0.00038356,7]
[313995731,1707918715412,-609.63,0.00038356,7]
[313995732,1707918715422,-290.5711751,0.00038356,7]
[313995733,1707918715432,-738.2,0.00038356,7]
[313995734,1707918715442,-553.78,0.00038356,7]
[313995735,1707918715452,-585.93,0.00038356,7]
[313995736,1707918715462,-863.16,0.00038356,7]
[313995737,1707918715471,-1318.95,0.00038356,7]
[313995738,1707918715481,-632.49,0.00038356,7]
[313995739,1707918715491,-878.83,0.00038356,7]
[313995740,1707918715501,-500.0,0.00038356,7]
[313995741,1707918715511,-837.17,0.00038356,7]
[313995742,1707918715522,-659.26,0.00038356,7]
[313995743,1707918715532,-1230.61,0.00038356,7]
[313995744,1707918715544,-500.0,0.00038356,7]
[313995745,1707918715553,-500.0,0.00038356,7]
[313995746,1707918715563,-500.0,0.00038356,7]
[313995747,1707918715573,-1303.9,0.00038356,7]
[313995748,1707918715583,-500.0,0.00038356,7]
[313995749,1707918715593,-1302.02,0.00038356,7]
[313995750,1707918715603,-695.14,0.00038356,7]
[313995751,1707918715612,-997.21,0.00038356,7]
[313995752,1707918715622,-500.0,0.00038356,7]
[313995753,1707918715632,-1326.61,0.00038356,7]
[313995754,1707918715645,-500.0,0.00038356,7]
[313995755,1707918715654,-500.0,0.00038356,7]
[313995756,1707918715664,-500.0,0.00038356,7]
[313995757,1707918715675,-1210.25,0.00038356,7]
[313995758,1707918715684,-1036.2,0.00038356,7]
[313995759,1707918715694,-500.0,0.00038356,7]
[313995760,1707918715703,-500.0,0.00038356,7]
[313995761,1707918715713,-500.0,0.00038356,7]
[313995762,1707918715723,-500.0,0.00038356,7]
[313995763,1707918715732,-1554.02,0.00038356,7]
[313995764,1707918715742,-794.8,0.00038356,7]
[313995765,1707918715751,-500.0,0.00038356,7]
[313995766,1707918715761,-825.62,0.00038356,7]
[313995767,1707918715770,-639.39,0.00038356,7]
[313995768,1707918715779,-1028.27,0.00038356,7]
[313995769,1707918715790,-500.0,0.00038356,7]
[313995770,1707918715799,-500.0,0.00038356,7]
[313995771,1707918715808,-500.0,0.00038356,7]
[313995772,1707918715817,-500.0,0.00038356,7]
[313995773,1707918715826,-1356.73,0.00038356,7]
[313995774,1707918715835,-1099.78,0.00038356,7]
[313995775,1707918715844,-1213.75,0.00038356,7]
[313995776,1707918715853,-995.39,0.00038356,2]
[313995777,1707918715862,-500.0,0.00038356,7]
[313995778,1707918715872,-646.45,0.00038356,7]
[313995779,1707918715882,-1321.75,0.00038356,7]
[313995780,1707918715891,-500.0,0.00038356,7]
[313995781,1707918715901,-1084.13,0.00038356,7]
[313995782,1707918715910,-1094.34,0.00038356,7]
[313995783,1707918715919,-500.0,0.00038356,7]
[313995784,1707918715928,-529.24,0.00038356,7]
[313995785,1707918715937,-250.0,0.00038356,7]
[313995786,1707918715946,-500.0,0.00038356,7]
[313995787,1707918715956,-500.0,0.00038356,7]
[313995788,1707918715965,-1288.85,0.00038356,7]
[313995789,1707918715975,-500.0,0.00038356,7]
[313995790,1707918715985,-500.0,0.00038356,7]
[313995791,1707918715995,-613.15,0.00038356,7]
[313995792,1707918716004,-740.98,0.00038356,7]
[313995793,1707918716014,-500.0,0.00038356,7]
[313995794,1707918716024,-500.0,0.00038356,7]
[313995795,1707918716034,-918.21,0.00038356,2]
[313995796,1707918716044,-790.84,0.00038356,7]
[313995797,1707918716054,-1413.05,0.00038356,7]
[313995798,1707918716063,-1413.61,0.00038356,7]
[313995799,1707918716073,-754.17,0.00038356,7]
[313995800,1707918716083,-768.11,0.00038356,7]
[313995801,1707918716093,-500.0,0.00038356,7]
[313995802,1707918716104,-1147.8,0.00038356,7]
[313995803,1707918716114,-500.0,0.00038356,7]
[313995804,1707918716123,-500.0,0.00038356,7]
[313995805,1707918716133,-884.99,0.00038356,7]
[313995806,1707918716142,-1363.27,0.00038356,7]
[313995807,1707918716152,-944.25,0.00038356,7]
[313995808,1707918716161,-500.0,0.00038356,7]
[313995809,1707918716170,-428.93532404,0.00038356,7]
[313995810,1707918716180,-516.45,0.00038356,7]
[313995811,1707918716188,-1338.49,0.00038356,7]
[313995812,1707918716198,-500.0,0.00038356,7]
[313995813,1707918716208,-721.42,0.00038356,7]
[313995814,1707918716217,-571.19835171,0.00038356,7]
[313995815,1707918716225,-1332.5,0.00038356,7]
[313995816,1707918716235,-617.74,0.00038356,7]
[313995817,1707918716245,-500.0,0.00038356,7]
[313995818,1707918716255,-1122.42,0.00038356,7]
[313995819,1707918716265,-500.0,0.00038356,7]
[313995820,1707918716274,-500.0,0.00038356,7]
[313995821,1707918716284,-812.15,0.00038356,7]
[313995822,1707918716295,-1122.49,0.00038356,7]
[313995823,1707918716303,-2014.14,0.00038356,7]
[313995824,1707918716313,-523.38692074,0.00038356,7]
[313995825,1707918716322,-500.0,0.00038356,7]
[313995826,1707918716331,-636.6,0.00038356,7]
[313995827,1707918716340,-577.14832151,0.00038356,7]
[313995828,1707918716350,-993.94,0.00038356,7]
[313995829,1707918716359,-518.12856773,0.00038356,7]
[313995830,1707918716369,-500.0,0.00038356,7]
[313995831,1707918716379,-667.57,0.00038356,7]
[313995832,1707918716388,-504.7,0.00038356,7]
[313995833,1707918716397,-372.83484975,0.00038356,7]
[313995834,1707918716406,-500.0,0.00038356,7]
[313995835,1707918716415,-500.0,0.00038356,7]
[313995836,1707918716424,-1764.29,0.00038356,7]
[313995837,1707918716433,-778.77,0.00038356,7]
[313995838,1707918716443,-2191.16,0.00038356,7]
[313995839,1707918716452,-591.81,0.00038356,7]
[313995840,1707918716461,-567.0072216,0.00038356,7]
[313995841,1707918716470,-500.0,0.00038356,7]
[313995842,1707918716480,-500.0,0.00038356,7]
[313995843,1707918716489,-1816.87,0.00038356,7]
[313995844,1707918716499,-796.54,0.00038356,7]
[313995845,1707918716508,-509.57,0.00038356,7]
[313995846,1707918716518,-510.03,0.00038356,7]
[313995847,1707918716527,-711.35,0.00038356,7]
[313995848,1707918716538,-640.27936587,0.00038356,7]
[313995849,1707918716547,-500.0,0.00038356,7]
[313995850,1707918716557,-757.25,0.00038356,7]
[313995851,1707918716567,-1499.13,0.00038356,7]
[313995852,1707918716576,-500.0,0.00038356,7]
[313995853,1707918716585,-149.45756181,0.00038356,7]